[Event "Late-Titled-Tuesday-Blitz-August-29-2023"]
[Site "Chess.com"]
[Date "2023.08.29"]
[Round "6"]
[White "Mbneu"]
[Black "Witik"]
[Result "0-1"]
[WhiteElo "2274"]
[BlackElo "2763"]
[TimeControl "180+1"]
[EndTime "15:05:28 PDT"]
[Termination "Witik won on time"]

1. d4 {[%clk 0:03:00.9]} 1... Nf6 {[%clk 0:02:59.9]} 2. c4 {[%clk 0:03:00.8]}
2... g6 {[%clk 0:03:00.4]} 3. Nc3 {[%clk 0:03:00.6]} 3... Bg7 {[%clk 0:03:00.9]}
4. e4 {[%clk 0:03:00.1]} 4... d6 {[%clk 0:03:01.5]} 5. f4 {[%clk 0:03:00.6]}
5... O-O {[%clk 0:02:59.3]} 6. Nf3 {[%clk 0:03:01.1]} 6... Bg4 {[%clk
0:02:59.3]} 7. Be2 {[%clk 0:02:59.8]} 7... Nfd7 {[%clk 0:02:55.3]} 8. O-O {[%clk
0:02:55]} 8... Nc6 {[%clk 0:02:54.8]} 9. d5 {[%clk 0:02:54.4]} 9... Bxf3 {[%clk
0:02:54.7]} 10. Bxf3 {[%clk 0:02:54.2]} 10... Nd4 {[%clk 0:02:54.6]} 11. Be3
{[%clk 0:02:53.9]} 11... c5 {[%clk 0:02:51.8]} 12. dxc6 {[%clk 0:02:52.2]} 12...
Nxf3+ {[%clk 0:02:46.8]} 13. Qxf3 {[%clk 0:02:51.6]} 13... bxc6 {[%clk
0:02:47.7]} 14. Rad1 {[%clk 0:02:45.7]} 14... Qa5 {[%clk 0:02:45.4]} 15. Bd4
{[%clk 0:02:38.3]} 15... Bxd4+ {[%clk 0:02:43]} 16. Rxd4 {[%clk 0:02:38.3]}
16... Nc5 {[%clk 0:02:31.1]} 17. Kh1 {[%clk 0:02:29.1]} 17... Rab8 {[%clk
0:02:28.1]} 18. b3 {[%clk 0:02:23.8]} 18... Ne6 {[%clk 0:02:28]} 19. Rd3 {[%clk
0:02:21.2]} 19... Qb4 {[%clk 0:02:08]} 20. f5 {[%clk 0:02:15]} 20... Nc5 {[%clk
0:02:07.4]} 21. Re3 {[%clk 0:02:03.5]} 21... Nd7 {[%clk 0:02:07.3]} 22. Qf4
{[%clk 0:01:52.5]} 22... Qa5 {[%clk 0:01:55.7]} 23. Rh3 {[%clk 0:01:49.8]} 23...
Qe5 {[%clk 0:01:55.5]} 24. Qh6 {[%clk 0:01:33.5]} 24... Qg7 {[%clk 0:01:55.3]}
25. Qh4 {[%clk 0:01:30.7]} 25... g5 {[%clk 0:01:52.9]} 26. Qh5 {[%clk
0:01:24.5]} 26... Nf6 {[%clk 0:01:44.2]} 27. Qe2 {[%clk 0:01:18.7]} 27... h5
{[%clk 0:01:28.1]} 28. Nd1 {[%clk 0:01:12.6]} 28... g4 {[%clk 0:01:25.3]} 29.
Rd3 {[%clk 0:01:11.2]} 29... Qg5 {[%clk 0:01:22.6]} 30. e5 {[%clk 0:01:06.7]}
30... dxe5 {[%clk 0:01:21.5]} 31. Qxe5 {[%clk 0:01:05.7]} 31... Rbd8 {[%clk
0:01:19.7]} 32. Nf2 {[%clk 0:00:55.7]} 32... Rxd3 {[%clk 0:01:11.2]} 33. Nxd3
{[%clk 0:00:55.5]} 33... Rd8 {[%clk 0:01:11.8]} 34. Nc5 {[%clk 0:00:46.2]} 34...
Rd2 {[%clk 0:00:58.4]} 35. a4 {[%clk 0:00:14.7]} 35... h4 {[%clk 0:00:49.8]} 36.
a5 {[%clk 0:00:13.4]} 36... g3 {[%clk 0:00:42.9]} 37. h3 {[%clk 0:00:12.8]}
37... Rf2 {[%clk 0:00:43.3]} 38. Rg1 {[%clk 0:00:08.6]} 38... Rxf5 {[%clk
0:00:33]} 39. Qb8+ {[%clk 0:00:08.1]} 39... Kg7 {[%clk 0:00:33.3]} 40. Nd3
{[%clk 0:00:07.4]} 40... Qe3 {[%clk 0:00:29.6]} 41. Ne1 {[%clk 0:00:04.6]} 41...
Ne4 {[%clk 0:00:27.8]} 0-1

[Event "Late-Titled-Tuesday-Blitz-August-29-2023"]
[Site "Chess.com"]
[Date "2023.08.29"]
[Round "6"]
[White "MusicCityMaster"]
[Black "lefonghua"]
[Result "0-1"]
[WhiteElo "2450"]
[BlackElo "2648"]
[TimeControl "180+1"]
[EndTime "15:05:29 PDT"]
[Termination "lefonghua won on time"]

1. e4 {[%clk 0:03:00.9]} 1... c5 {[%clk 0:02:59.7]} 2. Nf3 {[%clk 0:02:59.6]}
2... g6 {[%clk 0:03:00.1]} 3. d3 {[%clk 0:02:59.4]} 3... Bg7 {[%clk 0:03:00.2]}
4. g3 {[%clk 0:03:00]} 4... Nc6 {[%clk 0:03:00.3]} 5. Bg2 {[%clk 0:03:00.7]}
5... d6 {[%clk 0:02:59]} 6. O-O {[%clk 0:03:00.6]} 6... Nf6 {[%clk 0:02:59.3]}
7. Re1 {[%clk 0:03:00.4]} 7... O-O {[%clk 0:02:59.9]} 8. c3 {[%clk 0:03:00.9]}
8... Nd7 {[%clk 0:02:58.3]} 9. d4 {[%clk 0:02:57.8]} 9... Rb8 {[%clk 0:02:56.3]}
10. a4 {[%clk 0:02:52.4]} 10... a6 {[%clk 0:02:55.2]} 11. d5 {[%clk 0:02:36.6]}
11... Nce5 {[%clk 0:02:54.2]} 12. Nh4 {[%clk 0:02:29.6]} 12... b5 {[%clk
0:02:51.2]} 13. axb5 {[%clk 0:02:27.7]} 13... axb5 {[%clk 0:02:52.1]} 14. f4
{[%clk 0:02:27.5]} 14... Nc4 {[%clk 0:02:51.3]} 15. b3 {[%clk 0:02:21.3]} 15...
Na5 {[%clk 0:02:46.2]} 16. Bb2 {[%clk 0:01:46.5]} 16... b4 {[%clk 0:02:36.5]}
17. e5 {[%clk 0:01:24]} 17... bxc3 {[%clk 0:02:30.4]} 18. Bxc3 {[%clk
0:01:22.4]} 18... Nxb3 {[%clk 0:02:24.6]} 19. Ra3 {[%clk 0:01:21.6]} 19... c4
{[%clk 0:02:24.2]} 20. Nd2 {[%clk 0:01:09.3]} 20... Nxd2 {[%clk 0:02:03.4]} 21.
Qxd2 {[%clk 0:01:09.3]} 21... Rb3 {[%clk 0:01:49.9]} 22. Rxb3 {[%clk 0:00:55.4]}
22... cxb3 {[%clk 0:01:50.8]} 23. e6 {[%clk 0:00:55.5]} 23... Bxc3 {[%clk
0:01:38.4]} 24. Qxc3 {[%clk 0:00:48]} 24... Qb6+ {[%clk 0:01:33.3]} 25. Kh1
{[%clk 0:00:44]} 25... fxe6 {[%clk 0:01:30.6]} 26. dxe6 {[%clk 0:00:39.4]} 26...
Nc5 {[%clk 0:01:24.7]} 27. f5 {[%clk 0:00:39.5]} 27... gxf5 {[%clk 0:01:21.6]}
28. Qe3 {[%clk 0:00:28.2]} 28... Bxe6 {[%clk 0:01:05.2]} 29. Qg5+ {[%clk
0:00:25.4]} 29... Kf7 {[%clk 0:00:54.1]} 30. Qh5+ {[%clk 0:00:25.4]} 30... Kg7
{[%clk 0:00:44.9]} 31. Qg5+ {[%clk 0:00:24.2]} 31... Kh8 {[%clk 0:00:42.2]} 32.
Qxe7 {[%clk 0:00:23]} 32... Qd8 {[%clk 0:00:38.2]} 33. Rxe6 {[%clk 0:00:17.2]}
33... Nxe6 {[%clk 0:00:36.8]} 34. Qxe6 {[%clk 0:00:17.2]} 34... b2 {[%clk
0:00:36.8]} 35. Qe1 {[%clk 0:00:14.4]} 35... Qf6 {[%clk 0:00:34.4]} 36. Nf3
{[%clk 0:00:13.7]} 36... Rc8 {[%clk 0:00:34.4]} 37. Ng1 {[%clk 0:00:07.8]} 37...
Rc1 {[%clk 0:00:32.2]} 38. Qe8+ {[%clk 0:00:08]} 38... Kg7 {[%clk 0:00:32.7]}
39. Bd5 {[%clk 0:00:08.1]} 39... Rxg1+ {[%clk 0:00:28.5]} 40. Kxg1 {[%clk
0:00:08.6]} 40... b1=Q+ {[%clk 0:00:29]} 41. Kg2 {[%clk 0:00:09]} 41... Qbb2+
{[%clk 0:00:26]} 42. Kf3 {[%clk 0:00:07.2]} 42... Qfc3+ {[%clk 0:00:22.8]} 43.
Kf4 {[%clk 0:00:07.2]} 43... Qe5+ {[%clk 0:00:23.2]} 44. Kg5 {[%clk 0:00:07.3]}
44... Qxe8 {[%clk 0:00:22.8]} 0-1

[Event "Late-Titled-Tuesday-Blitz-August-29-2023"]
[Site "Chess.com"]
[Date "2023.08.29"]
[Round "6"]
[White "platy3"]
[Black "djano"]
[Result "1-0"]
[WhiteElo "2904"]
[BlackElo "2572"]
[TimeControl "180+1"]
[EndTime "15:05:30 PDT"]
[Termination "platy3 won by resignation"]

1. e4 {[%clk 0:03:00.9]} 1... c5 {[%clk 0:03:00.3]} 2. Nf3 {[%clk 0:03:00.2]}
2... Nc6 {[%clk 0:03:00.8]} 3. d4 {[%clk 0:02:59.4]} 3... cxd4 {[%clk
0:03:01.7]} 4. Nxd4 {[%clk 0:03:00.1]} 4... g6 {[%clk 0:03:02.1]} 5. c4 {[%clk
0:02:59.2]} 5... Bg7 {[%clk 0:03:02.4]} 6. Be3 {[%clk 0:02:59.9]} 6... Qb6
{[%clk 0:03:02.8]} 7. Nb5 {[%clk 0:02:59.1]} 7... Qa5+ {[%clk 0:03:02.1]} 8.
N5c3 {[%clk 0:02:59.6]} 8... Nf6 {[%clk 0:02:57.7]} 9. f3 {[%clk 0:02:58.7]}
9... O-O {[%clk 0:02:57.2]} 10. Nd2 {[%clk 0:02:58.7]} 10... Qb4 {[%clk
0:02:53.6]} 11. Rb1 {[%clk 0:02:53.4]} 11... d6 {[%clk 0:02:43.2]} 12. Be2
{[%clk 0:02:53.3]} 12... Nd7 {[%clk 0:02:28.6]} 13. a3 {[%clk 0:02:37.2]} 13...
Qa5 {[%clk 0:02:27.9]} 14. b4 {[%clk 0:02:37.1]} 14... Qd8 {[%clk 0:02:14.7]}
15. Nd5 {[%clk 0:02:21.7]} 15... e6 {[%clk 0:02:12.6]} 16. Nf4 {[%clk
0:02:22.1]} 16... Bh6 {[%clk 0:01:42.7]} 17. g3 {[%clk 0:02:16]} 17... e5 {[%clk
0:01:17.4]} 18. Nd5 {[%clk 0:02:13.3]} 18... Bxe3 {[%clk 0:01:16]} 19. Nxe3
{[%clk 0:02:14.2]} 19... a5 {[%clk 0:01:10]} 20. Nd5 {[%clk 0:01:28.5]} 20...
axb4 {[%clk 0:01:07.5]} 21. axb4 {[%clk 0:01:28.3]} 21... Nb6 {[%clk 0:01:01.5]}
22. Nc3 {[%clk 0:01:07.2]} 22... Nd4 {[%clk 0:00:53.5]} 23. O-O {[%clk
0:01:07.1]} 23... Be6 {[%clk 0:00:53.5]} 24. Nd5 {[%clk 0:01:04.8]} 24... Ra2
{[%clk 0:00:47.3]} 25. Rf2 {[%clk 0:01:00.5]} 25... Nxd5 {[%clk 0:00:41]} 26.
cxd5 {[%clk 0:00:59]} 26... Bd7 {[%clk 0:00:40.9]} 27. Bc4 {[%clk 0:00:54.9]}
27... Ra3 {[%clk 0:00:37.5]} 28. Bf1 {[%clk 0:00:51.8]} 28... Qa8 {[%clk
0:00:32.9]} 29. Nc4 {[%clk 0:00:51.5]} 29... Ra2 {[%clk 0:00:28.4]} 30. Rxa2
{[%clk 0:00:43.1]} 30... Qxa2 {[%clk 0:00:29.3]} 31. Rb2 {[%clk 0:00:43.9]}
31... Qa7 {[%clk 0:00:24.5]} 32. Rf2 {[%clk 0:00:44.1]} 32... Bb5 {[%clk
0:00:12.8]} 33. Nxd6 {[%clk 0:00:32.7]} 33... Bxf1 {[%clk 0:00:12.6]} 34. Qxf1
{[%clk 0:00:33.6]} 34... Qb6 {[%clk 0:00:13.1]} 35. Nc4 {[%clk 0:00:32.1]} 35...
Qxb4 {[%clk 0:00:13.3]} 36. Nxe5 {[%clk 0:00:31.3]} 36... Qb6 {[%clk 0:00:10.9]}
37. Nd7 {[%clk 0:00:29.3]} 37... Qd6 {[%clk 0:00:07.5]} 38. Nxf8 {[%clk
0:00:29.2]} 38... Kxf8 {[%clk 0:00:08.4]} 39. Qc4 {[%clk 0:00:27.5]} 39... Qb6
{[%clk 0:00:07.3]} 40. Kg2 {[%clk 0:00:26.2]} 40... h5 {[%clk 0:00:06.3]} 41.
Rd2 {[%clk 0:00:25]} 41... Nb3 {[%clk 0:00:06.4]} 42. Rb2 {[%clk 0:00:25]} 42...
Na5 {[%clk 0:00:05]} 43. Qc8+ {[%clk 0:00:21]} 1-0

[Event "Late-Titled-Tuesday-Blitz-August-29-2023"]
[Site "Chess.com"]
[Date "2023.08.29"]
[Round "6"]
[White "KorolDimitriy75"]
[Black "MathiasCasalaspro"]
[Result "0-1"]
[WhiteElo "2341"]
[BlackElo "2228"]
[TimeControl "180+1"]
[EndTime "15:05:32 PDT"]
[Termination "MathiasCasalaspro won on time"]

1. d4 {[%clk 0:02:54.3]} 1... Nf6 {[%clk 0:02:59.1]} 2. c4 {[%clk 0:02:54.1]}
2... g6 {[%clk 0:02:58.3]} 3. Nc3 {[%clk 0:02:54.6]} 3... Bg7 {[%clk 0:02:58.6]}
4. e4 {[%clk 0:02:54.7]} 4... d6 {[%clk 0:02:58.9]} 5. Nf3 {[%clk 0:02:55.1]}
5... O-O {[%clk 0:02:59]} 6. Be2 {[%clk 0:02:55.4]} 6... e5 {[%clk 0:02:58.9]}
7. dxe5 {[%clk 0:02:56.3]} 7... dxe5 {[%clk 0:02:58.3]} 8. Qxd8 {[%clk
0:02:57.2]} 8... Rxd8 {[%clk 0:02:58.7]} 9. Bg5 {[%clk 0:02:57.2]} 9... Re8
{[%clk 0:02:59.1]} 10. O-O-O {[%clk 0:02:56.3]} 10... c6 {[%clk 0:02:58.3]} 11.
Nxe5 {[%clk 0:02:56.2]} 11... Nxe4 {[%clk 0:02:26.5]} 12. Nxe4 {[%clk
0:02:57.1]} 12... Bxe5 {[%clk 0:02:24.4]} 13. f4 {[%clk 0:02:57]} 13... Bg7
{[%clk 0:02:21]} 14. Bf3 {[%clk 0:02:56.6]} 14... Bf5 {[%clk 0:02:18.9]} 15. Nd6
{[%clk 0:02:55.9]} 15... Na6 {[%clk 0:01:54.7]} 16. Nxe8 {[%clk 0:02:36.8]}
16... Rxe8 {[%clk 0:01:55.6]} 17. g4 {[%clk 0:01:34.6]} 17... Be6 {[%clk
0:01:12.3]} 18. b3 {[%clk 0:01:34.6]} 18... Nb4 {[%clk 0:01:10.4]} 19. Kb1
{[%clk 0:01:24.6]} 19... h6 {[%clk 0:01:05.9]} 20. Rd8 {[%clk 0:00:39.8]} 20...
Rxd8 {[%clk 0:00:50]} 21. Bxd8 {[%clk 0:00:40.7]} 21... h5 {[%clk 0:00:47.2]}
22. h3 {[%clk 0:00:39.6]} 22... Bh6 {[%clk 0:00:39]} 23. Bg5 {[%clk 0:00:16.5]}
23... Bg7 {[%clk 0:00:14.6]} 24. Rd1 {[%clk 0:00:15.8]} 24... hxg4 {[%clk
0:00:13.4]} 25. hxg4 {[%clk 0:00:16.7]} 25... a5 {[%clk 0:00:11.8]} 26. Rd8+
{[%clk 0:00:14.8]} 26... Kh7 {[%clk 0:00:11.9]} 27. Rb8 {[%clk 0:00:14.2]} 27...
f5 {[%clk 0:00:09]} 28. Rxb7 {[%clk 0:00:11.6]} 28... fxg4 {[%clk 0:00:08.8]}
29. Be4 {[%clk 0:00:11.1]} 29... Kg8 {[%clk 0:00:03.8]} 30. a3 {[%clk
0:00:10.5]} 30... g3 {[%clk 0:00:02.9]} 31. axb4 {[%clk 0:00:09.1]} 31... Bf5
{[%clk 0:00:03.4]} 32. Bxf5 {[%clk 0:00:05.3]} 32... g2 {[%clk 0:00:03.9]} 33.
Rb8+ {[%clk 0:00:03.7]} 33... Kh7 {[%clk 0:00:03.7]} 0-1

[Event "Late-Titled-Tuesday-Blitz-August-29-2023"]
[Site "Chess.com"]
[Date "2023.08.29"]
[Round "6"]
[White "DeTimmerman"]
[Black "Sjakkerntobi"]
[Result "1/2-1/2"]
[WhiteElo "2670"]
[BlackElo "2466"]
[TimeControl "180+1"]
[EndTime "15:05:36 PDT"]
[Termination "Game drawn by repetition"]

1. e4 {[%clk 0:03:00.3]} 1... e6 {[%clk 0:02:59.9]} 2. d4 {[%clk 0:02:58.5]}
2... d5 {[%clk 0:03:00.3]} 3. Nc3 {[%clk 0:02:59.4]} 3... Bb4 {[%clk 0:03:00.6]}
4. Ne2 {[%clk 0:02:50.4]} 4... Nc6 {[%clk 0:02:58.8]} 5. a3 {[%clk 0:02:43]}
5... Ba5 {[%clk 0:02:58.1]} 6. b4 {[%clk 0:02:40.7]} 6... Bb6 {[%clk 0:02:57.5]}
7. Bb2 {[%clk 0:02:39.9]} 7... Nge7 {[%clk 0:02:52.7]} 8. e5 {[%clk 0:02:36]}
8... O-O {[%clk 0:02:52]} 9. Na4 {[%clk 0:02:20.3]} 9... Nf5 {[%clk 0:02:26.6]}
10. h4 {[%clk 0:02:14.3]} 10... f6 {[%clk 0:02:15.5]} 11. g4 {[%clk 0:02:06.7]}
11... Nh6 {[%clk 0:02:15.5]} 12. Ng3 {[%clk 0:02:04.3]} 12... fxe5 {[%clk
0:02:15.1]} 13. Nxb6 {[%clk 0:02:04]} 13... axb6 {[%clk 0:02:14.8]} 14. dxe5
{[%clk 0:02:00.6]} 14... d4 {[%clk 0:02:11.8]} 15. Bd3 {[%clk 0:01:51.2]} 15...
Nxe5 {[%clk 0:02:07.3]} 16. Be4 {[%clk 0:01:35.9]} 16... c5 {[%clk 0:02:06.1]}
17. g5 {[%clk 0:01:34.2]} 17... Nf5 {[%clk 0:02:05]} 18. Qe2 {[%clk 0:01:33.7]}
18... Bd7 {[%clk 0:01:42.1]} 19. Nxf5 {[%clk 0:01:20.9]} 19... exf5 {[%clk
0:01:39.1]} 20. Bxb7 {[%clk 0:01:21.8]} 20... Re8 {[%clk 0:01:24.7]} 21. O-O-O
{[%clk 0:01:19.3]} 21... Ra7 {[%clk 0:01:20.4]} 22. Bd5+ {[%clk 0:01:12]} 22...
Kh8 {[%clk 0:01:05.2]} 23. Kb1 {[%clk 0:01:12]} 23... Bc8 {[%clk 0:00:56.4]} 24.
c4 {[%clk 0:01:03.5]} 24... Bb7 {[%clk 0:00:51.7]} 25. Rhe1 {[%clk 0:01:02.2]}
25... Bxd5 {[%clk 0:00:49.4]} 26. cxd5 {[%clk 0:01:02.9]} 26... Rae7 {[%clk
0:00:49.4]} 27. Qb5 {[%clk 0:00:46.9]} 27... Qxd5 {[%clk 0:00:27.7]} 28. Rxd4
{[%clk 0:00:44.3]} 28... Qf7 {[%clk 0:00:13.9]} 29. Rd6 {[%clk 0:00:37.4]} 29...
cxb4 {[%clk 0:00:14]} 30. Rxe5 {[%clk 0:00:35.7]} 30... Rxe5 {[%clk 0:00:10.5]}
31. Bxe5 {[%clk 0:00:35]} 31... Qb3+ {[%clk 0:00:10.5]} 32. Kc1 {[%clk
0:00:30.1]} 32... Qxa3+ {[%clk 0:00:08.6]} 33. Kd2 {[%clk 0:00:28.3]} 33... Qa2+
{[%clk 0:00:08.6]} 34. Ke1 {[%clk 0:00:25.8]} 34... Qb1+ {[%clk 0:00:08.3]} 35.
Rd1 {[%clk 0:00:20.8]} 35... Qe4+ {[%clk 0:00:08.2]} 36. Kf1 {[%clk 0:00:21.1]}
36... Qh1+ {[%clk 0:00:06.1]} 37. Ke2 {[%clk 0:00:20.9]} 37... Qe4+ {[%clk
0:00:06.4]} 38. Kf1 {[%clk 0:00:15.6]} 38... Qh1+ {[%clk 0:00:05.7]} 39. Ke2
{[%clk 0:00:15.7]} 39... Qe4+ {[%clk 0:00:06.3]} 40. Kf1 {[%clk 0:00:14.7]}
1/2-1/2

[Event "Late-Titled-Tuesday-Blitz-August-29-2023"]
[Site "Chess.com"]
[Date "2023.08.29"]
[Round "6"]
[White "laskakid"]
[Black "Maili15"]
[Result "0-1"]
[WhiteElo "2172"]
[BlackElo "2342"]
[TimeControl "180+1"]
[EndTime "15:05:38 PDT"]
[Termination "Maili15 won by resignation"]

1. d4 {[%clk 0:03:00]} 1... Nf6 {[%clk 0:02:57.2]} 2. c4 {[%clk 0:02:59.9]} 2...
g6 {[%clk 0:02:56.6]} 3. Nc3 {[%clk 0:02:58.3]} 3... d5 {[%clk 0:02:56.4]} 4. e3
{[%clk 0:02:57.2]} 4... Bg7 {[%clk 0:02:55.7]} 5. cxd5 {[%clk 0:02:57.4]} 5...
Nxd5 {[%clk 0:02:54.5]} 6. Nxd5 {[%clk 0:02:57.7]} 6... Qxd5 {[%clk 0:02:54.1]}
7. Ne2 {[%clk 0:02:58]} 7... O-O {[%clk 0:02:52.7]} 8. Nc3 {[%clk 0:02:58.2]}
8... Qa5 {[%clk 0:02:44.3]} 9. Be2 {[%clk 0:02:57.5]} 9... Rd8 {[%clk
0:02:42.4]} 10. O-O {[%clk 0:02:46.8]} 10... c5 {[%clk 0:02:42]} 11. d5 {[%clk
0:02:46.7]} 11... e6 {[%clk 0:02:39.6]} 12. e4 {[%clk 0:02:46.5]} 12... exd5
{[%clk 0:02:36.9]} 13. exd5 {[%clk 0:02:46.5]} 13... Nd7 {[%clk 0:02:37.1]} 14.
Bg5 {[%clk 0:02:32.9]} 14... Nf6 {[%clk 0:02:37.2]} 15. Bf3 {[%clk 0:02:26.1]}
15... h6 {[%clk 0:02:31.8]} 16. Bf4 {[%clk 0:02:23.9]} 16... Be6 {[%clk
0:02:24.6]} 17. Qb3 {[%clk 0:02:15.6]} 17... Bf5 {[%clk 0:01:55]} 18. Qxb7
{[%clk 0:02:06.3]} 18... Qb4 {[%clk 0:01:44.8]} 19. d6 {[%clk 0:01:46.2]} 19...
Qxf4 {[%clk 0:01:42.6]} 20. Rad1 {[%clk 0:01:32.7]} 20... c4 {[%clk 0:01:28.5]}
21. Qc7 {[%clk 0:01:23.5]} 21... Rac8 {[%clk 0:01:21.9]} 22. Qxa7 {[%clk
0:01:23.2]} 22... Bd3 {[%clk 0:01:21.7]} 23. Rfe1 {[%clk 0:01:13.9]} 23... Qxd6
{[%clk 0:01:11.5]} 24. Re3 {[%clk 0:00:53.3]} 24... Qb8 {[%clk 0:00:56.1]} 25.
Qa3 {[%clk 0:00:50.6]} 25... Re8 {[%clk 0:00:45.8]} 26. b4 {[%clk 0:00:45.6]}
26... Rxe3 {[%clk 0:00:33.7]} 27. fxe3 {[%clk 0:00:45.8]} 27... Qe5 {[%clk
0:00:30.9]} 28. Qc1 {[%clk 0:00:44.9]} 28... Re8 {[%clk 0:00:19.5]} 29. a4
{[%clk 0:00:44.1]} 29... Nd7 {[%clk 0:00:16.1]} 30. a5 {[%clk 0:00:42.9]} 30...
Qxc3 {[%clk 0:00:15.5]} 31. Qxc3 {[%clk 0:00:38.8]} 31... Bxc3 {[%clk
0:00:16.4]} 32. a6 {[%clk 0:00:38.8]} 32... Bxb4 {[%clk 0:00:15.1]} 33. a7
{[%clk 0:00:38.6]} 33... Nb6 {[%clk 0:00:12.8]} 34. Ra1 {[%clk 0:00:38.6]} 34...
Bc5 {[%clk 0:00:08.8]} 35. Ra6 {[%clk 0:00:37.8]} 35... Bxe3+ {[%clk 0:00:08.5]}
36. Kh1 {[%clk 0:00:37.6]} 36... Bc5 {[%clk 0:00:08.1]} 37. h4 {[%clk
0:00:36.1]} 37... Bd6 {[%clk 0:00:06.1]} 38. g3 {[%clk 0:00:28.6]} 38... Bc5
{[%clk 0:00:05.3]} 39. Ra5 {[%clk 0:00:27.1]} 39... Bd4 {[%clk 0:00:05.2]} 40.
Rb5 {[%clk 0:00:24.9]} 40... c3 {[%clk 0:00:04.3]} 41. Rxb6 {[%clk 0:00:21.9]}
41... Bxb6 {[%clk 0:00:05.2]} 42. a8=Q {[%clk 0:00:21.9]} 42... Rxa8 {[%clk
0:00:05.3]} 43. Bxa8 {[%clk 0:00:21.8]} 43... c2 {[%clk 0:00:06]} 44. Kg2 {[%clk
0:00:20.5]} 44... c1=Q {[%clk 0:00:06.9]} 0-1

[Event "Late-Titled-Tuesday-Blitz-August-29-2023"]
[Site "Chess.com"]
[Date "2023.08.29"]
[Round "6"]
[White "grzechu96"]
[Black "simplerXiao"]
[Result "0-1"]
[WhiteElo "2686"]
[BlackElo "2535"]
[TimeControl "180+1"]
[EndTime "15:05:40 PDT"]
[Termination "simplerXiao won by resignation"]

1. e4 {[%clk 0:03:00.9]} 1... c5 {[%clk 0:02:23.4]} 2. Nf3 {[%clk 0:02:59.1]}
2... e6 {[%clk 0:02:23.1]} 3. g3 {[%clk 0:02:46.4]} 3... Nc6 {[%clk 0:02:18.6]}
4. Bg2 {[%clk 0:02:43.1]} 4... d5 {[%clk 0:02:17.5]} 5. exd5 {[%clk 0:02:41.7]}
5... exd5 {[%clk 0:02:17.6]} 6. d4 {[%clk 0:02:39.2]} 6... Nf6 {[%clk
0:02:17.7]} 7. O-O {[%clk 0:02:38.7]} 7... cxd4 {[%clk 0:02:15.4]} 8. Nxd4
{[%clk 0:02:37]} 8... Be7 {[%clk 0:02:15.5]} 9. h3 {[%clk 0:02:25.7]} 9... O-O
{[%clk 0:02:14.5]} 10. Be3 {[%clk 0:02:23.2]} 10... Ne5 {[%clk 0:02:04.6]} 11.
Nd2 {[%clk 0:02:22.3]} 11... Bc5 {[%clk 0:01:54.1]} 12. c3 {[%clk 0:02:14.5]}
12... h6 {[%clk 0:01:53.2]} 13. Ne6 {[%clk 0:01:58.2]} 13... Bxe6 {[%clk
0:01:52.6]} 14. Bxc5 {[%clk 0:01:58.6]} 14... Re8 {[%clk 0:01:53.3]} 15. Bd4
{[%clk 0:01:57.8]} 15... Nc6 {[%clk 0:01:52.9]} 16. Nb3 {[%clk 0:01:55.9]} 16...
Ne4 {[%clk 0:01:51.6]} 17. Re1 {[%clk 0:01:52.4]} 17... Bf5 {[%clk 0:01:30.4]}
18. Qf3 {[%clk 0:01:28.2]} 18... Qd7 {[%clk 0:01:29.2]} 19. g4 {[%clk
0:01:25.8]} 19... Bg6 {[%clk 0:01:26.5]} 20. Rad1 {[%clk 0:01:18.5]} 20... Qc7
{[%clk 0:01:21]} 21. Be3 {[%clk 0:00:48.1]} 21... Rad8 {[%clk 0:01:20]} 22. Bf4
{[%clk 0:00:45.2]} 22... Qb6 {[%clk 0:01:15.4]} 23. Qe3 {[%clk 0:00:43.7]} 23...
Qb5 {[%clk 0:01:08.3]} 24. h4 {[%clk 0:00:20.6]} 24... a5 {[%clk 0:01:05.8]} 25.
h5 {[%clk 0:00:20.9]} 25... Bh7 {[%clk 0:01:04.3]} 26. Qe2 {[%clk 0:00:13.7]}
26... Qb6 {[%clk 0:01:01.9]} 27. Nd4 {[%clk 0:00:12.8]} 27... Nf6 {[%clk
0:00:56.9]} 28. Qf3 {[%clk 0:00:09.6]} 28... Qxb2 {[%clk 0:00:51.4]} 29. Nxc6
{[%clk 0:00:08.7]} 29... bxc6 {[%clk 0:00:50.8]} 30. Bxh6 {[%clk 0:00:09.2]}
30... Be4 {[%clk 0:00:49.7]} 31. Qf4 {[%clk 0:00:09.2]} 31... Qxc3 {[%clk
0:00:44.3]} 32. Bg5 {[%clk 0:00:07.6]} 32... Bxg2 {[%clk 0:00:41.4]} 33. Kxg2
{[%clk 0:00:08.4]} 33... Rxe1 {[%clk 0:00:40.6]} 34. Rxe1 {[%clk 0:00:08.8]}
34... Qxe1 {[%clk 0:00:40.3]} 35. h6 {[%clk 0:00:08.5]} 35... Qe4+ {[%clk
0:00:39.6]} 36. Kg3 {[%clk 0:00:07.7]} 36... Qxf4+ {[%clk 0:00:37.9]} 37. Kxf4
{[%clk 0:00:08.6]} 37... Re8 {[%clk 0:00:37.1]} 38. hxg7 {[%clk 0:00:08.8]}
38... Kxg7 {[%clk 0:00:36.7]} 39. Kf5 {[%clk 0:00:09.4]} 39... Ne4 {[%clk
0:00:36.1]} 40. Be3 {[%clk 0:00:08.9]} 40... c5 {[%clk 0:00:33.4]} 41. f3 {[%clk
0:00:09.2]} 41... d4 {[%clk 0:00:33.6]} 42. Bf4 {[%clk 0:00:08.8]} 42... Nc3
{[%clk 0:00:31.2]} 43. Bd6 {[%clk 0:00:08]} 43... Na4 {[%clk 0:00:25.4]} 44. f4
{[%clk 0:00:04]} 44... d3 {[%clk 0:00:25.6]} 45. Be5+ {[%clk 0:00:04]} 45...
Rxe5+ {[%clk 0:00:25.1]} 46. fxe5 {[%clk 0:00:04.1]} 46... d2 {[%clk 0:00:25.3]}
47. e6 {[%clk 0:00:03.4]} 47... fxe6+ {[%clk 0:00:23.9]} 48. Kxe6 {[%clk
0:00:03.3]} 48... d1=Q {[%clk 0:00:24.2]} 49. g5 {[%clk 0:00:03.6]} 49... Qg4+
{[%clk 0:00:23.9]} 0-1